[Event "XIX Najdorf Memorial 2019"]
[Site "Warsaw"]
[Date "2019.07.12"]
[Round "7.4"]
[White "Marczuk, Dominik"]
[Black "Janik, Igor"]
[Result "1/2-1/2"]
[ECO "A45"]
[WhiteElo "2300"]
[BlackElo "2495"]
[Annotator "ChessBase"]
[PlyCount "68"]
[EventDate "2019.07.06"]
[EventType "swiss"]
[EventCountry "POL"]
[SourceTitle "playchess.com"]
[Source "ChessBase"]
[SourceQuality "1"]
[TimeControl "40/5400+30:1800+30"]

1. d4 {[%emt 0:00:00]} Nf6 {[%emt 0:00:00]} 2. Nc3 {[%emt 0:00:00]} d5 {[%emt 0:00:00]} 3. Bf4 {[%emt 0:00:00]} e6 {[%emt 0:00:11]} 4. Nb5 {[%emt 0:00:18]} Na6 {[%emt 0:00:07]} 5. a3 {[%emt 0:00:30]} c6 {[%emt 0:01:33]} 6. Nc3 {[%emt 0:00:09]} c5 {[%emt 0:03:21]} 7. e3 {[%emt 0:00:41]} Bd7 {[%emt 0:00:09]} 8. Nf3 {[%emt 0:03:18]} Qb6 {[%emt 0:00:40]} 9. Rb1 {[%emt 0:01:46]} Be7 {[%emt 0:04:18]} 10. Ne5 {[%emt 0:07:54]} O-O {[%emt 0:04:58]} 11. g4 {[%emt 0:05:57]} cxd4 {[%emt 0:05:21]} 12. exd4 {[%emt 0:00:18]} Rad8 {[%emt 0:00:17]} 13. g5 {[%emt 0:07:56]} Ne4 {[%emt 0:06:10]} 14. Nxe4 {[%emt 0:00:11]} dxe4 {[%emt 0:00:09]} 15. Nxd7 {[%emt 0:07:44]} Rxd7 {[%emt 0:00:15]} 16. c3 {[%emt 0:00:37]} Nc7 {[%emt 0:11:10]} 17. Qc2 {[%emt 0:09:27]} Nd5 {[%emt 0:01:58]} 18. Qxe4 {[%emt 0:02:15]} Nxf4 {[%emt 0:05:11]} 19. Qxf4 {[%emt 0:00:06]} e5 {[%emt 0:01:38]} 20. Qxe5 {[%emt 0:10:45]} Bxa3 {[%emt 0:02:13]} 21. Qb5 {[%emt 0:06:53]} Qe6+ {[%emt 0:01:34]} 22. Kd2 {[%emt 0:00:45]} a6 {[%emt 0:05:47]} 23. Qd3 {[%emt 0:02:50]} Qa2 {[%emt 0:01:24]} 24. Bh3 {[%emt 0:08:12]} Rd5 {[%emt 0:06:07]} 25. Ra1 {[%emt 0:12:36]} Qxb2+ {[%emt 0:01:52]} 26. Qc2 {[%emt 0:00:04]} Qxc2+ {[%emt 0:02:45]} 27. Kxc2 {[%emt 0:00:05]} Bd6 {[%emt 0:00:06]} 28. Bg2 {[%emt 0:00:55]} Rf5 {[%emt 0:02:44]} 29. Bxb7 {[%emt 0:03:41]} Rxf2+ {[%emt 0:00:06]} 30. Kd3 {[%emt 0:00:03]} Bxh2 {[%emt 0:01:17]} 31. Rxa6 {[%emt 0:00:34]} Bf4 {[%emt 0:00:39]} 32. Rg1 {[%emt 0:00:33]} Rb2 {[%emt 0:00:42]} 33. Bd5 {[%emt 0:01:31]} Rd2+ {[%emt 0:00:59]} 34. Kc4 {[%emt 0:01:45]} Rc8+ {[%emt 0:00:58]} 1/2-1/2

[Event "XIX Najdorf Memorial 2019"]
[Site "Warsaw"]
[Date "2019.07.12"]
[Round "7.5"]
[White "Kanarek, Marcel"]
[Black "Sedlak, Nikola"]
[Result "0-1"]
[ECO "B17"]
[WhiteElo "2493"]
[BlackElo "2586"]
[Annotator "ChessBase"]
[PlyCount "132"]
[EventDate "2019.07.06"]
[EventType "swiss"]
[EventCountry "POL"]
[SourceTitle "playchess.com"]
[Source "ChessBase"]
[SourceQuality "1"]
[TimeControl "40/5400+30:1800+30"]

1. e4 {[%emt 0:00:12]} c6 {[%emt 0:04:38]} 2. d4 {[%emt 0:00:02]} d5 {[%emt 0:00:39]} 3. Nc3 {[%emt 0:00:03]} dxe4 {[%emt 0:00:28]} 4. Nxe4 {[%emt 0:00:03]} Nd7 {[%emt 0:00:22]} 5. Nf3 {[%emt 0:00:37]} Ngf6 {[%emt 0:00:23]} 6. Ng3 {[%emt 0:00:38]} e6 {[%emt 0:06:04]} 7. Bd3 {[%emt 0:00:17]} c5 {[%emt 0:08:13]} 8. O-O {[%emt 0:01:21]} Be7 {[%emt 0:00:57]} 9. Qe2 {[%emt 0:03:11]} O-O {[%emt 0:04:41]} 10. Rd1 {[%emt 0:01:19]} cxd4 {[%emt 0:08:24]} 11. Nxd4 {[%emt 0:01:11]} Re8 {[%emt 0:05:14]} 12. h4 {[%emt 0:13:43]} Bf8 {[%emt 0:10:30]} 13. h5 {[%emt 0:01:09]} b6 {[%emt 0:11:29]} 14. h6 {[%emt 0:44:31]} g6 {[%emt 0:00:16]} 15. Bg5 {[%emt 0:05:49]} Bb7 {[%emt 0:01:09]} 16. Ne4 {[%emt 0:10:59]} Be7 {[%emt 0:01:12]} 17. Bxf6 {[%emt 0:11:48]} Nxf6 {[%emt 0:03:17]} 18. Nxf6+ {[%emt 0:01:17]} Bxf6 {[%emt 0:00:08]} 19. Bb5 {[%emt 0:00:44]} Bxd4 {[%emt 0:02:17]} 20. Bxe8 {[%emt 0:00:02]} Qg5 {[%emt 0:02:57]} 21. Qf1 {[%emt 0:00:13]} Qf4 {[%emt 0:01:24]} 22. Rxd4 {[%emt 0:01:14]} Qxd4 {[%emt 0:00:11]} 23. Rd1 {[%emt 0:00:21]} Qe4 {[%emt 0:02:26]} 24. Bb5 {[%emt 0:00:15]} Qxc2 {[%emt 0:00:54]} 25. Qd3 {[%emt 0:00:59]} Qxd3 {[%emt 0:00:23]} 26. Rxd3 {[%emt 0:00:04]} Bd5 {[%emt 0:00:21]} 27. Rc3 {[%emt 0:00:41]} Bxa2 {[%emt 0:01:36]} 28. Rc7 {[%emt 0:00:38]} a5 {[%emt 0:02:01]} 29. Kh2 Kf8 {[%emt 0:00:51]} 30. Rb7 {[%emt 0:01:05]} Bd5 {[%emt 0:01:02]} 31. Rxb6 {[%emt 0:00:12]} Ke7 {[%emt 0:00:11]} 32. Kg3 {[%emt 0:00:47]} Kf6 {[%emt 0:01:07]} 33. Bc6 {[%emt 0:00:32]} Rd8 {[%emt 0:01:15]} 34. Ba4 {[%emt 0:00:24]} Kg5 {[%emt 0:00:45]} 35. Rb5 {[%emt 0:00:20]} Kxh6 {[%emt 0:01:28]} 36. Rxa5 {[%emt 0:00:04]} Rb8 {[%emt 0:00:56]} 37. Rb5 {[%emt 0:00:30]} Rxb5 {[%emt 0:02:53]} 38. Bxb5 {[%emt 0:00:01]} Bb3 {[%emt 0:00:07]} 39. Kf4 {[%emt 0:00:17]} f6 {[%emt 0:00:07]} 40. Ke3 {[%emt 0:00:00]} Kg7 {[%emt 0:00:00]} 41. Kd4 {[%emt 0:07:13]} Kf7 {[%emt 0:07:16]} 42. Kc5 {[%emt 0:11:08]} Ke7 {[%emt 0:00:15]} 43. Bc6 {[%emt 0:08:54]} h5 {[%emt 0:08:33]} 44. Kb4 {[%emt 0:04:20]} Kd6 {[%emt 0:01:33]} 45. Be8 {[%emt 0:02:04]} Bd5 {[%emt 0:02:25]} 46. g3 {[%emt 0:00:52]} Be4 {[%emt 0:00:18]} 47. Kc4 {[%emt 0:00:41]} Ke7 {[%emt 0:01:08]} 48. Ba4 {[%emt 0:00:01]} g5 {[%emt 0:05:01]} 49. Kd4 {[%emt 0:00:03]} f5 {[%emt 0:03:44]} 50. Ke3 {[%emt 0:01:15]} h4 {[%emt 0:00:10]} 51. gxh4 {[%emt 0:00:17]} gxh4 {[%emt 0:00:07]} 52. f3 {[%emt 0:00:18]} h3 {[%emt 0:00:10]} 53. Kf2 {[%emt 0:00:14]} h2 {[%emt 0:00:10]} 54. Kg2 {[%emt 0:00:06]} Bxf3+ {[%emt 0:00:07]} 55. Kxh2 e5 {[%emt 0:01:13]} 56. Kg3 {[%emt 0:00:20]} Bb7 {[%emt 0:00:10]} 57. Bc2 {[%emt 0:01:09]} Kf6 {[%emt 0:00:09]} 58. b4 {[%emt 0:00:35]} Kg5 {[%emt 0:00:09]} 59. b5 {[%emt 0:00:54]} f4+ {[%emt 0:00:09]} 60. Kf2 {[%emt 0:00:05]} e4 {[%emt 0:00:10]} 61. Bb3 {[%emt 0:01:13]} Kf6 {[%emt 0:01:27]} 62. Ke2 {[%emt 0:00:20]} Ke5 {[%emt 0:00:19]} 63. Bf7 {[%emt 0:00:59]} Kd4 {[%emt 0:00:11]} 64. Be8 {[%emt 0:00:14]} f3+ {[%emt 0:01:31]} 65. Kf1 {[%emt 0:00:57]} Bd5 {[%emt 0:00:53]} 66. Bc6 {[%emt 0:00:41]} e3 {[%emt 0:00:13]} 0-1

[Event "XIX Najdorf Memorial 2019"]
[Site "Warsaw"]
[Date "2019.07.12"]
[Round "7.5"]
[White "Bednarek, Sylwester"]
[Black "Klekowski, Maciej"]
[Result "0-1"]
[ECO "A45"]
[WhiteElo "2291"]
[BlackElo "2482"]
[Annotator "ChessBase"]
[PlyCount "94"]
[EventDate "2019.07.06"]
[EventType "swiss"]
[EventCountry "POL"]
[SourceTitle "playchess.com"]
[Source "ChessBase"]
[SourceQuality "1"]
[TimeControl "40/5400+30:1800+30"]

1. d4 Nf6 {[%emt 0:02:06]} 2. Bg5 {[%emt 0:02:24]} d5 {[%emt 0:00:10]} 3. Bxf6 {[%emt 0:00:07]} exf6 {[%emt 0:00:10]} 4. e3 {[%emt 0:00:14]} Bd6 {[%emt 0:00:13]} 5. g3 {[%emt 0:00:19]} O-O {[%emt 0:00:21]} 6. Bg2 {[%emt 0:00:06]} c6 {[%emt 0:00:30]} 7. Nd2 {[%emt 0:01:03]} Nd7 {[%emt 0:01:38]} 8. Ne2 {[%emt 0:00:08]} f5 {[%emt 0:01:57]} 9. O-O {[%emt 0:00:36]} Nf6 {[%emt 0:00:12]} 10. b3 {[%emt 0:00:11]} b6 {[%emt 0:04:53]} 11. c4 {[%emt 0:02:44]} Ne4 {[%emt 0:06:39]} 12. Rc1 {[%emt 0:16:03]} Qe7 {[%emt 0:07:33]} 13. Rc2 {[%emt 0:13:29]} Bb7 {[%emt 0:01:07]} 14. Nf3 {[%emt 0:01:53]} g6 {[%emt 0:04:07]} 15. Nf4 {[%emt 0:06:32]} Rac8 {[%emt 0:02:58]} 16. Nd3 {[%emt 0:02:28]} Rfd8 {[%emt 0:09:03]} 17. Qa1 {[%emt 0:02:08]} c5 {[%emt 0:01:54]} 18. cxd5 {[%emt 0:01:39]} Bxd5 {[%emt 0:01:03]} 19. Rfc1 {[%emt 0:00:53]} Bb7 {[%emt 0:01:55]} 20. dxc5 {[%emt 0:08:40]} bxc5 {[%emt 0:01:21]} 21. Nde5 {[%emt 0:03:10]} Qc7 {[%emt 0:12:52]} 22. b4 {[%emt 0:02:23]} Re8 {[%emt 0:00:48]} 23. Nd3 {[%emt 0:00:37]} c4 {[%emt 0:01:31]} 24. Nc5 {[%emt 0:01:04]} Bxc5 {[%emt 0:02:34]} 25. bxc5 {[%emt 0:01:19]} Qxc5 {[%emt 0:00:55]} 26. Nd4 {[%emt 0:01:28]} Bd5 {[%emt 0:02:10]} 27. Ne2 {[%emt 0:04:44]} Red8 {[%emt 0:04:17]} 28. h4 {[%emt 0:01:38]} h5 {[%emt 0:02:25]} 29. Nf4 {[%emt 0:00:20]} Bb7 {[%emt 0:00:21]} 30. Rxc4 {[%emt 0:05:07]} Qxc4 {[%emt 0:01:28]} 31. Rxc4 {[%emt 0:00:03]} Rxc4 {[%emt 0:00:05]} 32. Qb2 {[%emt 0:01:27]} Bc6 {[%emt 0:04:18]} 33. Kh2 {[%emt 0:02:11]} Rd2 {[%emt 0:01:15]} 34. Qb8+ {[%emt 0:00:05]} Kg7 {[%emt 0:00:57]} 35. Qe5+ {[%emt 0:02:48]} Nf6 {[%emt 0:00:39]} 36. Nh3 {[%emt 0:03:56]} Bxg2 {[%emt 0:01:25]} 37. Kxg2 {[%emt 0:00:02]} Rcc2 {[%emt 0:00:57]} 38. a4 {[%emt 0:00:14]} Ra2 {[%emt 0:01:07]} 39. a5 {[%emt 0:00:51]} Rd5 {[%emt 0:00:20]} 40. Qe7 {[%emt 0:00:00]} Ng4 {[%emt 0:00:00]} 41. Qxa7 {[%emt 0:01:00]} Rdd2 {[%emt 0:01:48]} 42. Kg1 {[%emt 0:10:34]} Rd1+ {[%emt 0:01:25]} 43. Kg2 {[%emt 0:00:02]} Rd3 {[%emt 0:00:45]} 44. Kf3 {[%emt 0:02:01]} Rdd2 {[%emt 0:02:36]} 45. e4 {[%emt 0:02:34]} fxe4+ {[%emt 0:05:49]} 46. Kxe4 {[%emt 0:02:24]} Ra3 {[%emt 0:02:40]} 47. Nf4 {[%emt 0:03:50]} Ra4+ {[%emt 0:00:47] Kd4} 0-1

[Event "XIX Najdorf Memorial 2019"]
[Site "Warsaw"]
[Date "2019.07.12"]
[Round "7.6"]
[White "Noe, Christopher"]
[Black "Romanishin, Oleg M"]
[Result "1-0"]
[ECO "D20"]
[WhiteElo "2534"]
[BlackElo "2443"]
[Annotator "ChessBase"]
[PlyCount "49"]
[EventDate "2019.07.06"]
[EventType "swiss"]
[EventCountry "POL"]
[SourceTitle "playchess.com"]
[Source "ChessBase"]
[SourceQuality "1"]
[TimeControl "40/5400+30:1800+30"]

1. d4 {[%emt 0:00:00]} d5 {[%emt 0:00:27]} 2. c4 {[%emt 0:00:00]} dxc4 {[%emt 0:00:06]} 3. Nc3 {[%emt 0:01:31]} a6 {[%emt 0:01:49]} 4. e4 {[%emt 0:03:01]} b5 {[%emt 0:00:19]} 5. a4 {[%emt 0:00:06]} b4 {[%emt 0:07:16]} 6. Nce2 {[%emt 0:01:13]} Nf6 {[%emt 0:11:14]} 7. Ng3 {[%emt 0:01:38]} Nc6 {[%emt 0:01:39]} 8. e5 {[%emt 0:14:51]} Qxd4 {[%emt 0:00:47]} 9. exf6 {[%emt 0:02:27]} Qxd1+ {[%emt 0:00:09]} 10. Kxd1 {[%emt 0:00:04]} Bg4+ {[%emt 0:00:06]} 11. Kc2 {[%emt 0:31:40]} Nd4+ {[%emt 0:08:42]} 12. Kb1 {[%emt 0:00:19]} c3 {[%emt 0:25:33]} 13. Bc4 {[%emt 0:05:49]} exf6 {[%emt 0:09:39]} 14. Nf3 {[%emt 0:06:21]} Nxf3 {[%emt 0:06:38]} 15. gxf3 {[%emt 0:00:06]} Bxf3 {[%emt 0:00:22]} 16. Re1+ {[%emt 0:00:11]} Kd7 {[%emt 0:00:07]} 17. bxc3 {[%emt 0:05:47]} bxc3 {[%emt 0:01:02]} 18. Kc2 {[%emt 0:00:04]} Bd6 {[%emt 0:03:04]} 19. Bxf7 {[%emt 0:05:16]} h5 {[%emt 0:06:59]} 20. Be6+ {[%emt 0:00:54]} Kc6 {[%emt 0:00:07]} 21. Re3 {[%emt 0:00:06]} Rae8 {[%emt 0:02:19]} 22. Rxc3+ {[%emt 0:03:44]} Kb7 {[%emt 0:00:16]} 23. Rb1+ {[%emt 0:00:27]} Ka8 {[%emt 0:00:02]} 24. Bd7 {[%emt 0:00:28]} Re7 {[%emt 0:04:06]} 25. Bc6+ {[%emt 0:01:48]} 1-0

[Event "XIX Najdorf Memorial 2019"]
[Site "Warsaw"]
[Date "2019.07.12"]
[Round "7.6"]
[White "Bebel, Arkadiusz"]
[Black "Abdumalik, Zhansaya"]
[Result "1/2-1/2"]
[ECO "B40"]
[WhiteElo "2290"]
[BlackElo "2458"]
[Annotator "ChessBase"]
[PlyCount "269"]
[EventDate "2019.07.06"]
[EventType "swiss"]
[EventCountry "POL"]
[SourceTitle "playchess.com"]
[Source "ChessBase"]
[SourceQuality "1"]
[TimeControl "40/5400+30:1800+30"]

1. e4 {[%emt 0:00:00]} c5 {[%emt 0:12:25]} 2. Nf3 {[%emt 0:00:00]} e6 {[%emt 0:00:23]} 3. c3 {[%emt 0:00:00]} Nf6 {[%emt 0:01:09]} 4. e5 {[%emt 0:00:00]} Nd5 {[%emt 0:00:03]} 5. Bc4 {[%emt 0:00:21]} Nb6 {[%emt 0:01:06]} 6. Bb3 {[%emt 0:00:09]} d5 {[%emt 0:00:36]} 7. exd6 {[%emt 0:03:10]} Qxd6 {[%emt 0:02:11]} 8. O-O {[%emt 0:02:24]} Nc6 {[%emt 0:02:04]} 9. Na3 {[%emt 0:02:43]} a6 {[%emt 0:01:14]} 10. Qe2 {[%emt 0:03:48]} Be7 {[%emt 0:03:38]} 11. Rd1 {[%emt 0:00:28]} Qc7 {[%emt 0:05:00]} 12. d4 {[%emt 0:06:36]} cxd4 {[%emt 0:02:25]} 13. Nxd4 {[%emt 0:00:07]} Bd7 {[%emt 0:05:08]} 14. Nf3 {[%emt 0:07:32]} h6 {[%emt 0:05:48]} 15. Nc4 {[%emt 0:03:23]} Nxc4 {[%emt 0:01:17]} 16. Qxc4 {[%emt 0:00:17]} g5 {[%emt 0:02:16]} 17. Be3 {[%emt 0:09:44]} O-O-O {[%emt 0:02:11]} 18. Bc2 {[%emt 0:02:23]} f5 {[%emt 0:05:36]} 19. Nd4 {[%emt 0:15:53]} Na5 {[%emt 0:08:25]} 20. Qxc7+ {[%emt 0:04:13]} Kxc7 {[%emt 0:00:02]} 21. Nf3 {[%emt 0:01:54]} Nc6 {[%emt 0:02:28]} 22. a4 {[%emt 0:07:33]} f4 {[%emt 0:02:24]} 23. Bd4 {[%emt 0:00:07]} Nxd4 {[%emt 0:01:29]} 24. Nxd4 {[%emt 0:01:14]} Bf6 {[%emt 0:01:42]} 25. Nb3 {[%emt 0:03:06]} Bc8 {[%emt 0:02:48]} 26. Nc5 {[%emt 0:00:50]} b6 {[%emt 0:03:01]} 27. Ne4 {[%emt 0:00:35]} Be7 {[%emt 0:01:38]} 28. Rxd8 {[%emt 0:00:31]} Rxd8 {[%emt 0:00:17]} 29. Rd1 {[%emt 0:00:08]} Bd7 {[%emt 0:02:29]} 30. h3 {[%emt 0:03:30]} h5 {[%emt 0:02:37]} 31. f3 {[%emt 0:00:20]} Rg8 {[%emt 0:00:28]} 32. Kf2 {[%emt 0:02:55]} g4 {[%emt 0:01:55]} 33. hxg4 {[%emt 0:00:07]} hxg4 {[%emt 0:01:39]} 34. Rh1 {[%emt 0:05:16]} gxf3 {[%emt 0:08:25]} 35. gxf3 {[%emt 0:00:13]} Rg7 {[%emt 0:03:31]} 36. Rh5 {[%emt 0:03:18]} Bc6 {[%emt 0:01:07]} 37. b4 {[%emt 0:01:44]} Kd7 {[%emt 0:04:21]} 38. Rh6 {[%emt 0:03:00]} a5 {[%emt 0:01:09]} 39. bxa5 {[%emt 0:00:37]} bxa5 {[%emt 0:00:29]} 40. Bb3 {[%emt 0:00:00]} e5 {[%emt 0:00:00]} 41. Bc2 {[%emt 0:03:48]} Rg8 {[%emt 0:08:19]} 42. Bb3 {[%emt 0:06:18]} Rb8 {[%emt 0:04:05]} 43. Be6+ {[%emt 0:00:07]} Kc7 {[%emt 0:00:27]} 44. Rh7 {[%emt 0:00:30]} Rb2+ {[%emt 0:00:09]} 45. Kf1 {[%emt 0:00:32]} Bxe4 {[%emt 0:00:49]} 46. fxe4 {[%emt 0:00:13]} Kd6 {[%emt 0:00:24]} 47. Rh6 {[%emt 0:01:21]} Bg5 {[%emt 0:02:02]} 48. Rg6 {[%emt 0:00:50]} Bh4 {[%emt 0:00:25]} 49. Bc4+ {[%emt 0:01:53]} Kd7 {[%emt 0:02:03]} 50. Rg7+ {[%emt 0:00:21]} Kd8 {[%emt 0:01:14]} 51. Rg2 {[%emt 0:04:33]} Rb1+ {[%emt 0:00:33]} 52. Ke2 {[%emt 0:00:02]} Rc1 {[%emt 0:01:24]} 53. Kd2 {[%emt 0:01:51]} Ra1 {[%emt 0:00:09]} 54. Rg8+ {[%emt 0:02:56]} Ke7 {[%emt 0:00:40]} 55. Bb5 {[%emt 0:00:47]} Be1+ {[%emt 0:01:58]} 56. Kd3 {[%emt 0:01:46]} Ra3 {[%emt 0:01:27]} 57. Rc8 {[%emt 0:01:18]} Kf6 {[%emt 0:02:00]} 58. Rf8+ {[%emt 0:00:18]} Kg6 {[%emt 0:00:30]} 59. Kc4 {[%emt 0:02:27]} Bxc3 {[%emt 0:00:53]} 60. Rf5 {[%emt 0:00:09]} Bd4 {[%emt 0:01:21]} 61. Kd5 {[%emt 0:00:15]} Rg3 {[%emt 0:00:21]} 62. Be2 {[%emt 0:00:34]} Rg2 {[%emt 0:00:43]} 63. Bb5 {[%emt 0:00:52]} Rg3 {[%emt 0:00:17]} 64. Be2 {[%emt 0:00:05]} Kh6 {[%emt 0:00:16]} 65. Rf6+ {[%emt 0:01:02]} Kg7 {[%emt 0:01:06]} 66. Rf5 {[%emt 0:00:07]} Rg6 {[%emt 0:00:31]} 67. Bh5 {[%emt 0:00:55]} Rg2 {[%emt 0:00:31]} 68. Be8 {[%emt 0:00:28]} Bb2 {[%emt 0:01:41]} 69. Ke6 {[%emt 0:00:34]} Rg3 {[%emt 0:00:29]} 70. Bh5 {[%emt 0:01:54]} Bd4 {[%emt 0:00:15]} 71. Kd5 {[%emt 0:00:13]} Ra3 {[%emt 0:00:27]} 72. Bd1 {[%emt 0:00:40]} Ra1 {[%emt 0:00:36]} 73. Bb3 {[%emt 0:01:56]} Kg6 {[%emt 0:02:06]} 74. Ke6 {[%emt 0:00:22]} Bb2 {[%emt 0:00:40]} 75. Ke7 {[%emt 0:00:44]} Rg1 {[%emt 0:01:12]} 76. Bf7+ {[%emt 0:00:08]} Kg7 {[%emt 0:00:38]} 77. Ke6 {[%emt 0:00:37]} Bc3 {[%emt 0:00:39]} 78. Be8 {[%emt 0:00:22]} Bd4 {[%emt 0:01:39]} 79. Bf7 {[%emt 0:00:07]} Rg4 {[%emt 0:01:16]} 80. Bh5 {[%emt 0:00:41]} Rh4 {[%emt 0:00:49]} 81. Be8 {[%emt 0:01:26]} Rh6+ {[%emt 0:01:39]} 82. Kd5 {[%emt 0:00:01]} Rh8 {[%emt 0:01:32]} 83. Bh5 {[%emt 0:00:15]} Rb8 {[%emt 0:01:20]} 84. Ke6 {[%emt 0:00:26]} Rb6+ {[%emt 0:00:19]} 85. Kd5 {[%emt 0:00:09]} Bb2 {[%emt 0:00:17]} 86. Be8 {[%emt 0:00:35]} Rb8 {[%emt 0:00:35]} 87. Bb5 {[%emt 0:00:44]} Bc3 {[%emt 0:01:08]} 88. Ke6 {[%emt 0:00:08]} Rd8 {[%emt 0:01:29]} 89. Bd7 {[%emt 0:00:05]} Rh8 {[%emt 0:00:11]} 90. Rg5+ {[%emt 0:00:42]} Kh6 {[%emt 0:00:36]} 91. Rf5 {[%emt 0:00:07]} Rg8 {[%emt 0:00:35]} 92. Kf7 {[%emt 0:03:24]} Rg3 {[%emt 0:01:25]} 93. Be8 {[%emt 0:00:42]} f3 {[%emt 0:00:30]} 94. Kf6 {[%emt 0:00:07]} Rh3 {[%emt 0:00:03]} 95. Bb5 {[%emt 0:00:58]} Bd4 {[%emt 0:00:16]} 96. Kf7 {[%emt 0:01:05]} Rg3 {[%emt 0:00:40]} 97. Kf6 {[%emt 0:00:25]} Rg6+ {[%emt 0:01:02]} 98. Kf7 {[%emt 0:00:02]} Rg3 {[%emt 0:00:38]} 99. Kf6 {[%emt 0:00:01]} f2 {[%emt 0:00:27]} 100. Be2 {[%emt 0:00:07]} Rh3 {[%emt 0:00:36]} 101. Kf7 {[%emt 0:00:02]} Rh1 {[%emt 0:00:14]} 102. Kf6 {[%emt 0:00:16]} Kh7 {[%emt 0:00:13]} 103. Kf7 {[%emt 0:00:12]} Be3 {[%emt 0:00:07]} 104. Rf3 {[%emt 0:00:12]} Bd4 {[%emt 0:01:16]} 105. Rf5 {[%emt 0:00:13]} Rh4 {[%emt 0:00:26]} 106. Bd3 {[%emt 0:00:35]} Rh3 {[%emt 0:00:27]} 107. Be2 {[%emt 0:00:04]} Rh1 {[%emt 0:00:30]} 108. Rf3 {[%emt 0:01:12]} Kh8 {[%emt 0:00:40]} 109. Bf1 {[%emt 0:00:38]} Kh7 {[%emt 0:00:35]} 110. Be2 {[%emt 0:00:33]} Rh4 {[%emt 0:00:30]} 111. Bd3 {[%emt 0:00:52]} Kh6 {[%emt 0:00:10]} 112. Kf6 {[%emt 0:00:41]} Rh2 {[%emt 0:00:34]} 113. Rf5 {[%emt 0:00:17]} Rh3 {[%emt 0:00:23]} 114. Be2 {[%emt 0:00:15]} Rh2 {[%emt 0:00:55]} 115. Bd3 {[%emt 0:00:09]} Rh1 {[%emt 0:00:03]} 116. Be2 {[%emt 0:00:09]} Kh7 {[%emt 0:00:48]} 117. Kf7 {[%emt 0:00:05]} Kh8 {[%emt 0:00:27]} 118. Rf3 {[%emt 0:00:39]} Rh4 {[%emt 0:00:35]} 119. Bf1 {[%emt 0:00:13]} Kh7 {[%emt 0:00:25]} 120. Bd3 {[%emt 0:00:27]} Kh6 {[%emt 0:00:28]} 121. Kf6 {[%emt 0:00:03]} Rh1 {[%emt 0:00:46]} 122. Rf5 {[%emt 0:00:19]} Rc1 {[%emt 0:00:32]} 123. Be2 {[%emt 0:00:23]} Rc6+ {[%emt 0:00:09]} 124. Kf7 {[%emt 0:00:05]} Kh7 {[%emt 0:00:13]} 125. Rh5+ {[%emt 0:00:17]} Rh6 {[%emt 0:00:04]} 126. Rxh6+ {[%emt 0:00:08]} Kxh6 {[%emt 0:00:05]} 127. Kf6 {[%emt 0:00:03]} Bc3 {[%emt 0:00:19]} 128. Kf5 {[%emt 0:00:04]} Kg7 {[%emt 0:00:03]} 129. Kg4 {[%emt 0:00:07]} Kf6 {[%emt 0:00:05]} 130. Bb5 {[%emt 0:00:16]} Ke6 {[%emt 0:00:04]} 131. Kf3 {[%emt 0:00:10]} Kd6 {[%emt 0:00:05]} 132. Ke2 {[%emt 0:00:05]} Kc5 {[%emt 0:00:02]} 133. Kf1 {[%emt 0:00:07]} Bd4 {[%emt 0:00:05]} 134. Be8 {[%emt 0:00:08]} Kc4 {[%emt 0:00:08]} 135. Bd7 {[%emt 0:00:06]} 1/2-1/2

[Event "XIX Najdorf Memorial 2019"]
[Site "Warsaw"]
[Date "2019.07.12"]
[Round "7.7"]
[White "Barski, Radoslaw"]
[Black "Shyam, Sundar M."]
[Result "1/2-1/2"]
[ECO "B87"]
[WhiteElo "2468"]
[BlackElo "2520"]
[Annotator "ChessBase"]
[PlyCount "130"]
[EventDate "2019.07.06"]
[EventType "swiss"]
[EventCountry "POL"]
[SourceTitle "playchess.com"]
[Source "ChessBase"]
[SourceQuality "1"]
[TimeControl "40/5400+30:1800+30"]

1. e4 {[%emt 0:06:14]} c5 {[%emt 0:00:00]} 2. Nf3 {[%emt 0:00:07]} d6 {[%emt 0:00:00]} 3. d4 {[%emt 0:00:09]} cxd4 {[%emt 0:00:00]} 4. Nxd4 {[%emt 0:00:08]} Nf6 {[%emt 0:00:00]} 5. Nc3 {[%emt 0:00:09]} a6 {[%emt 0:00:03]} 6. Bc4 {[%emt 0:00:34]} e6 {[%emt 0:00:05]} 7. Bb3 {[%emt 0:00:08]} b5 {[%emt 0:01:59]} 8. Bg5 {[%emt 0:00:15]} Qb6 {[%emt 0:11:38]} 9. Bxf6 {[%emt 0:11:02]} gxf6 {[%emt 0:00:03]} 10. Qd2 {[%emt 0:00:17]} Bd7 {[%emt 0:15:22]} 11. O-O-O {[%emt 0:09:20]} a5 {[%emt 0:01:44]} 12. Kb1 {[%emt 0:18:34]} a4 {[%emt 0:14:55]} 13. Bd5 {[%emt 0:00:09]} Ra7 {[%emt 0:00:03]} 14. Rhe1 {[%emt 0:12:47]} Na6 {[%emt 0:17:49]} 15. Qe2 {[%emt 0:18:29]} Nc7 {[%emt 0:02:45]} 16. Qh5 {[%emt 0:00:01]} Be7 {[%emt 0:15:42]} 17. Bxe6 {[%emt 0:03:20]} Bxe6 {[%emt 0:01:33]} 18. Nd5 {[%emt 0:00:29]} Nxd5 {[%emt 0:13:48]} 19. exd5 {[%emt 0:00:11]} Bc8 {[%emt 0:00:13]} 20. Nc6 {[%emt 0:03:42]} Qxf2 {[%emt 0:00:02]} 21. Nxa7 {[%emt 0:05:24]} Qxa7 {[%emt 0:00:01]} 22. Rd3 {[%emt 0:00:49]} Kd8 {[%emt 0:01:29]} 23. Rde3 {[%emt 0:00:15]} Re8 {[%emt 0:00:08]} 24. Qxf7 {[%emt 0:00:30]} Qd7 {[%emt 0:00:02]} 25. Qxh7 {[%emt 0:02:14]} b4 {[%emt 0:00:01]} 26. Qf7 {[%emt 0:02:59]} b3 {[%emt 0:00:33]} 27. axb3 {[%emt 0:00:02]} axb3 {[%emt 0:00:02]} 28. Rxb3 {[%emt 0:00:24]} Rf8 {[%emt 0:00:05]} 29. Qg7 {[%emt 0:00:40]} Qe8 {[%emt 0:01:24]} 30. Rbe3 {[%emt 0:01:14]} Rf7 {[%emt 0:00:01]} 31. Qg3 {[%emt 0:01:07]} f5 {[%emt 0:01:18]} 32. Qf4 {[%emt 0:02:31]} Qb5 {[%emt 0:00:34]} 33. Qd4 {[%emt 0:01:20]} Bf6 {[%emt 0:00:32]} 34. Re8+ {[%emt 0:00:17]} Kc7 {[%emt 0:00:42]} 35. Qa7+ {[%emt 0:00:24]} Qb7 {[%emt 0:00:35]} 36. Qa5+ {[%emt 0:01:02]} Kb8 {[%emt 0:00:01]} 37. b3 {[%emt 0:00:20]} Rc7 {[%emt 0:01:05]} 38. Rd1 {[%emt 0:00:47]} Rc5 {[%emt 0:01:27]} 39. Qa4 {[%emt 0:00:23]} Qb6 {[%emt 0:01:04]} 40. Rd3 {[%emt 0:00:00]} Ra5 {[%emt 0:00:00]} 41. Rxc8+ {[%emt 0:01:21]} Kxc8 {[%emt 0:00:42]} 42. Qe8+ {[%emt 0:00:06]} Kb7 {[%emt 0:02:43]} 43. Qd7+ {[%emt 0:04:23]} Kb8 {[%emt 0:00:14]} 44. Qe8+ {[%emt 0:00:12]} Kb7 {[%emt 0:06:34]} 45. Qd7+ {[%emt 0:00:20]} Qc7 {[%emt 0:00:20]} 46. Qxc7+ {[%emt 0:00:26]} Kxc7 {[%emt 0:00:02]} 47. c3 {[%emt 0:00:17]} Be5 {[%emt 0:00:01]} 48. g3 {[%emt 0:01:05]} Ra8 {[%emt 0:00:07]} 49. Kb2 {[%emt 0:02:17]} Rh8 {[%emt 0:00:23]} 50. Rd2 {[%emt 0:00:05]} f4 {[%emt 0:02:23]} 51. gxf4 {[%emt 0:00:25]} Bxf4 {[%emt 0:00:02]} 52. Rf2 {[%emt 0:01:07]} Be5 {[%emt 0:01:21]} 53. Rf3 {[%emt 0:02:14]} Rxh2+ {[%emt 0:00:12]} 54. Ka3 {[%emt 0:00:03]} Rd2 {[%emt 0:02:30]} 55. c4 {[%emt 0:00:34]} Rc2 {[%emt 0:00:07]} 56. Rf8 {[%emt 0:11:11]} Bd4 {[%emt 0:11:31]} 57. Rf4 {[%emt 0:03:28]} Be3 {[%emt 0:02:42]} 58. Rg4 {[%emt 0:01:17]} Bc1+ {[%emt 0:04:56]} 59. Ka4 {[%emt 0:00:06]} Kb6 {[%emt 0:01:14]} 60. b4 {[%emt 0:00:34]} Rc3 {[%emt 0:00:02]} 61. c5+ {[%emt 0:00:23]} dxc5 {[%emt 0:00:01]} 62. Rg6+ {[%emt 0:00:11]} Kb7 {[%emt 0:00:05]} 63. bxc5 {[%emt 0:00:05]} Rxc5 {[%emt 0:00:28]} 64. Rc6 {[%emt 0:00:06]} Rxc6 {[%emt 0:00:04]} 65. dxc6+ {[%emt 0:00:05]} Kxc6 {[%emt 0:00:01]} 1/2-1/2